[Event "Polish Youth B18 Championship 2023"]
[Site "Jastrzebia Gora"]
[Date "2023.03.16"]
[Round "6.16"]
[White "Lis, Maksymilian"]
[Black "Kitewski, Bartosz"]
[Result "1-0"]
[ECO "D70"]
[WhiteElo "1784"]
[BlackElo "1968"]
[Annotator "TA"]
[PlyCount "53"]
[EventDate "2023.03.11"]
[EventType "swiss"]
[EventCountry "POL"]
[SourceTitle "playchess.com"]
[Source "ChessBase"]
[SourceQuality "1"]
[TimeControl "40/5400+30:1800+30"]

{[%evp 14,53,0,10,39,37,41,43,33,44,37,45,32,34,116,107,162,102,99,89,145,55,74,63,275,270,635,634,933,910,1027,389,383,381,362,-48,-43,-53,-48,-52,450,424]} 1. d4 {[%emt 0:00:02]} Nf6 {[%emt 0:02:06]} 2. c4 {[%emt 0:00:07]} g6 {[%emt 0:00:04]} 3. Nf3 {[%emt 0:00:04]} Bg7 {[%emt 0:00:07]} 4. Nc3 {[%emt 0:00:06]} d5 {[%emt 0:00:04]} 5. Bd2 {[%emt 0:00:10]} O-O {[%emt 0:00:32]} 6. cxd5 {[%emt 0:00:13]} Nxd5 {[%emt 0:00:04]} 7. e4 {[%emt 0:00:19]} Nxc3 {[%emt 0:00:07]} 8. Bxc3 {[%emt 0:00:03]} e6 {[%emt 0:03:38][%cal Oc7c5] D90: Grünfeld: 4 Nf3 Bg7 sidelines.} 9. Qc2 {[%emt 0:05:23]} Nd7 {[%emt 0:00:16]} 10. Rd1 {[%emt 0:00:24]} b6 {[%emt 0:00:29] [#] White is slightly better.} 11. Bc4 $146 {[%emt 0:02:44]} ({Predecessor:} 11. Bb5 Bb7 12. Bb4 Re8 13. O-O c6 14. Bxc6 Rc8 15. d5 exd5 16. exd5 Nb8 17. Bc3 Bxc6 18. dxc6 {1-0 Kuzubov,Y (2642)-Pereira,R (2436) POR-chT Ovar 2022 (6.4)}) 11... Bb7 {[%emt 0:02:13]} 12. O-O {[%emt 0:01:01]} Qe7 {[%emt 0:03:48]} 13. Rfe1 {[%emt 0:09:30]} c5 {[%emt 0:02:13]} (13... a5 $14) 14. d5 $16 {[%emt 0:00:39]} exd5 {[%emt 0:00:10]} (14... Bxc3 $16 15. bxc3 (15. Qxc3 Rad8 $16) 15... exd5 16. exd5 Qd6) 15. Bxg7 {[%emt 0:01:52]} ({Don't do} 15. Bxd5 $6 Bxd5 16. Bxg7 (16. exd5 Qd6 $14) (16. Rxd5 Bxc3 17. bxc3 Nf6 $11) 16... Kxg7 $14) (15. exd5 $18 Qd6 16. Ng5 Bxc3 17. Qxc3) 15... Kxg7 {[%emt 0:00:12]} 16. exd5 {[%emt 0:09:17]} ({Don't take} 16. Bxd5 Bxd5 17. exd5 Qd6 $14) 16... Qd6 {[%emt 0:04:14] [#]} 17. Ng5 {[%emt 0:06:32]} ({Better is} 17. Re6 $1 $16 Qf4 18. Qc3+ (18. Re7 Rad8 $14) 18... Kg8 19. g3) 17... Nf6 $1 $14 {[%emt 0:02:20]} 18. Qc3 {[%emt 0:00:51][%cal Og5e6] Black must now prevent Ne6+! White is more active.} Kg8 $2 {[%emt 0:00:45] [#]} (18... Rfe8 $14) 19. Ne6 $1 $18 {[%emt 0:27:50][%mdl 64] Promotion} fxe6 $2 {[%emt 0:36:39]} (19... Rae8 20. Nxf8 Rxf8) 20. dxe6 {[%emt 0:00:47]} Qf4 {[%emt 0:00:51][%cal Ob7d5]} 21. e7+ {[%emt 0:00:54]} Rf7 {[%emt 0:00:20]} 22. Qb3 $2 {[%emt 0:00:44]} (22. Bxf7+ Kxf7 23. Rd8) 22... Ne8 {[%emt 0:01:36]} 23. Bxf7+ {[%emt 0:08:20]} Qxf7 {[%emt 0:00:06]} 24. Qxf7+ {[%emt 0:00:07]} (24. Qb5 $18 Qf6 25. Rd8) 24... Kxf7 $15 {[%emt 0:00:04]} 25. Rd8 {[%emt 0:00:08]} Bc6 {[%emt 0:03:24]} 26. f3 {[%emt 0:00:24]} Ng7 $2 {[%emt 0:00:38][%mdl 8192] [#]} (26... a5 $15 {keeps the upper hand.}) 27. e8=Q+ $1 {[%emt 0:00:36][%mdl 512] Artfully played by Lis.   Weighted Error Value: White=0.46/Black=0.88} 1-0

[Event "Polish Youth B18 Championship 2023"]
[Site "Jastrzebia Gora"]
[Date "2023.03.16"]
[Round "6.17"]
[White "Zeissel, Andrzej"]
[Black "Pisarek, Jan"]
[Result "0-1"]
[ECO "B45"]
[WhiteElo "1717"]
[BlackElo "1931"]
[Annotator "TA"]
[PlyCount "132"]
[EventDate "2023.03.11"]
[EventType "swiss"]
[EventCountry "POL"]
[SourceTitle "playchess.com"]
[Source "ChessBase"]
[SourceQuality "1"]
[TimeControl "40/5400+30:1800+30"]

{[%evp 17,132,27,47,39,45,43,45,13,78,72,84,86,80,75,73,64,61,64,68,33,44,33,33,30,45,34,39,39,39,44,47,0,0,-23,-28,-25,0,-26,-26,-20,-19,-18,-8,-8,-8,-18,-30,-22,-24,-37,-32,-37,-37,-57,-28,-29,-22,-22,-15,-14,-14,-14,-14,-14,-12,-42,0,-63,-64,-64,-64,-69,0,0,0,0,0,0,0,0,0,0,0,-8,-8,-8,0,-138,-138,-138,-138,-1593,-1176,-1439,-1310,-1883,-1531,-1713,-1393,-1445,-1421,-1290,-1243,-29975,-29975,-29982,-29983,-29983,-29984,-29984,-29985,-29986,-29987,-29982,-29983,-29986,-29987]} 1. e4 {[%emt 0:00:02]} c5 {[%emt 0:00:10]} 2. Nc3 {[%emt 0:00:05]} e6 {[%emt 0:00:08]} 3. Nge2 {[%emt 0:00:06]} Nc6 {[%emt 0:01:07]} 4. d4 {[%emt 0:00:30]} cxd4 {[%emt 0:00:09]} 5. Nxd4 {[%emt 0:00:04]} Nf6 {[%emt 0:00:06]} 6. Nxc6 {[%emt 0:00:04]} bxc6 {[%emt 0:00:07]} 7. e5 {[%emt 0:00:02]} Nd5 {[%emt 0:00:13]} 8. Ne4 {[%emt 0:00:05]} Qa5+ {[%emt 0:00:11]} 9. c3 {[%emt 0:00:05]} Ba6 {[%emt 0:00:09]} 10. Bxa6 {[%emt 0:00:46] B45: Sicilian Four Knights.} Qxa6 {[%emt 0:00:04]} 11. b3 {[%emt 0:00:31]} Qa5 {[%emt 0:00:46] [#]} 12. Qf3 $146 {[%emt 0:00:35] White is slightly better.} ({Predecessor:} 12. Qd4 Be7 13. O-O f5 14. exf6 Nxf6 15. Nd6+ Bxd6 16. Qxd6 Ne4 17. Qd4 Qxc3 18. Qxc3 Nxc3 {½-½ Dutreeuw,M (2425)-Maljutin,E (2480) Werfen op-A 1992 (7)}) 12... f5 {[%emt 0:09:41]} (12... Be7 $1 $11 {keeps the balance.}) 13. exf6 $16 {[%emt 0:01:32]} Nxf6 {[%emt 0:00:04]} 14. Nxf6+ {[%emt 0:00:42]} gxf6 {[%emt 0:00:05] [#]} 15. O-O $1 {[%emt 0:03:41]} ({Don't play} 15. Qxf6 Rg8 16. O-O Bg7 $11) 15... Qd5 {[%emt 0:05:27]} 16. Qh3 {[%emt 0:06:05]} h5 {[%emt 0:02:52]} 17. Be3 {[%emt 0:07:34]} Qe4 {[%emt 0:02:41]} 18. Bd4 {[%emt 0:10:47]} Be7 {[%emt 0:03:24]} 19. f4 {[%emt 0:09:20]} c5 {[%emt 0:05:20]} 20. Rae1 {[%emt 0:02:35]} Qc6 {[%emt 0:08:26]} 21. Bf2 {[%emt 0:02:52]} f5 {[%emt 0:07:24]} 22. Bh4 {[%emt 0:04:33]} Bxh4 {[%emt 0:01:20]} 23. Qxh4 {[%emt 0:00:09]} Kf7 {[%emt 0:00:23] Repels Qf6+} 24. Re3 {[%emt 0:10:46]} (24. Rf2 $14) 24... Rag8 $11 {[%emt 0:03:50][%csl Gg8][%cal Rc6g2]} 25. Rg3 {[%emt 0:00:58]} Rxg3 {[%emt 0:00:37]} 26. Qxg3 {[%emt 0:05:21][%mdl 4096] Endgame KQR-KQR} Rg8 {[%emt 0:00:45]} (26... h4 $5 {[%cal Rh4g3]} 27. Qd3 Ke7 $11) 27. Qf3 {[%emt 0:01:25]} Qxf3 {[%emt 0:01:46]} 28. Rxf3 {[%emt 0:00:02] KR-KR} h4 {[%emt 0:00:27]} 29. Kf2 {[%emt 0:02:43]} a5 {[%emt 0:05:01]} 30. Rh3 {[%emt 0:04:04]} Rg4 {[%emt 0:01:42]} 31. g3 {[%emt 0:01:42]} hxg3+ {[%emt 0:01:53]} 32. hxg3 {[%emt 0:00:03]} Rg8 {[%emt 0:00:37]} 33. Rh7+ {[%emt 0:00:50]} Ke8 {[%emt 0:00:07]} 34. Rh5 {[%emt 0:06:25]} Ke7 {[%emt 0:01:47][%cal Oa5a4]} 35. Rh1 {[%emt 0:04:17] Wards off a4} c4 {[%emt 0:12:12]} 36. Rb1 {[%emt 0:09:17]} Rh8 {[%emt 0:00:07]} 37. Ke3 $1 {[%emt 0:03:00]} Rh3 {[%emt 0:01:35]} 38. Rg1 {[%emt 0:01:48]} Rh2 {[%emt 0:01:37]} 39. Kd4 {[%emt 0:02:44]} cxb3 {[%emt 0:02:06]} 40. axb3 {[%emt 0:00:00]} Rb2 {[%emt 0:00:00]} 41. Ra1 {[%emt 0:02:50]} Rg2 {[%emt 0:01:47]} 42. Rxa5 {[%emt 0:05:02]} ({Better is} 42. b4 $1 $11 a4 43. Rxa4) 42... Rxg3 $15 {[%emt 0:00:10] Black is more active.} 43. b4 {[%emt 0:04:41]} Rf3 $1 {[%emt 0:11:05]} 44. b5 {[%emt 0:01:53] Threatens to win with b6.} d6 {[%emt 0:14:33]} (44... Rxf4+ $15 45. Kc5 Rf3) 45. Ra7+ $11 {[%emt 0:05:02]} Kd8 {[%emt 0:00:05]} 46. Rh7 {[%emt 0:04:39]} Rxf4+ {[%emt 0:00:41]} 47. Kd3 {[%emt 0:01:05]} d5 {[%emt 0:02:46]} 48. b6 {[%emt 0:01:04] Intending b7 and mate.} Kc8 {[%emt 0:00:31]} 49. Re7 {[%emt 0:00:18]} Re4 {[%emt 0:00:27]} 50. Rf7 {[%emt 0:01:26]} f4 {[%emt 0:01:47]} 51. Kd2 {[%emt 0:00:35]} e5 {[%emt 0:02:23][%cal Be6e5,Be5e4][%mdl 32]} (51... Rc4 {simplifies} 52. Rf6 Rc6 53. Rxf4 Rxb6 54. c4 dxc4 55. Rxc4+ Kd8) 52. Kd3 {[%emt 0:00:11] [#]} (52. Rc7+ $11 Kb8 53. Rf7) 52... Rc4 $1 $17 {[%emt 0:08:25]} 53. Kd2 {[%emt 0:04:13]} Rc6 {[%emt 0:03:35]} 54. Re7 $2 {[%emt 0:01:45][%mdl 8192] This costs White the game.} (54. b7+ $17 Kb8 55. Rf5) 54... e4 $19 {[%emt 0:00:48]} ({Weaker is} 54... Rxb6 55. Rxe5 Rb5 56. Rf5 $11) 55. b7+ {[%emt 0:02:42]} Kb8 {[%emt 0:00:04]} 56. Rd7 {[%emt 0:00:14]} Rc5 {[%emt 0:02:21] And now ...Ra5 would win.} 57. Rf7 {[%emt 0:00:27]} f3 {[%emt 0:00:18][%cal Bf4f3,Bf3f2][%mdl 32]} 58. Rd7 {[%emt 0:00:36]} Ka7 {[%emt 0:02:48] ...Rb5 would be deadly.} 59. Rf7 {[%emt 0:00:58]} Rc6 {[%emt 0:00:44]} 60. Rd7 {[%emt 0:00:32]} Rf6 {[%emt 0:00:59] Black mates.} 61. Ke1 {[%emt 0:00:10]} f2+ {[%emt 0:00:31]} 62. Kf1 {[%emt 0:00:02]} e3 {[%emt 0:00:32]} 63. Re7 {[%emt 0:00:49]} Rf3 {[%emt 0:00:09]} 64. Re5 {[%emt 0:02:00]} Kxb7 {[%emt 0:00:10]} 65. Re6 {[%emt 0:00:12]} Kc7 {[%emt 0:00:15]} 66. Re8 {[%emt 0:00:10]} Kd6 {[%emt 0:01:14] Weighted Error Value: White=0.49/Black=0.18 (very precise)} 0-1

[Event "Polish Youth B18 Championship 2023"]
[Site "Jastrzebia Gora"]
[Date "2023.03.16"]
[Round "6.18"]
[White "Karut, Kacper"]
[Black "Pieczulis, Blazej"]
[Result "1/2-1/2"]
[ECO "B12"]
[WhiteElo "1904"]
[BlackElo "1784"]
[Annotator "TA"]
[PlyCount "129"]
[EventDate "2023.03.11"]
[EventType "swiss"]
[EventCountry "POL"]
[SourceTitle "playchess.com"]
[Source "ChessBase"]
[SourceQuality "1"]
[TimeControl "40/5400+30:1800+30"]

{[%evp 9,129,-5,22,-2,27,26,36,26,30,16,17,17,19,25,22,25,31,0,1,0,34,34,33,12,0,0,0,0,0,-18,0,0,0,-14,-21,-20,0,0,67,0,37,13,64,58,85,24,50,0,129,46,45,49,218,0,28,0,62,0,0,0,0,-3,0,0,0,0,0,0,0,0,15,-122,-122,-1055,-517,-518,-513,-497,-496,-552,-540,-547,-536,-490,-489,-462,-397,-366,-174,-161,-162,-413,-406,-565,-259,-667,-651,-580,-208,-485,-484,-469,-205,-516,-205,-339,-276,-267,0,-205,0,-498,0,-391,-169,-514,-228,-502,-502,-498,-468,-315]} 1. e4 {[%emt 0:00:01]} c6 {[%emt 0:00:12]} 2. d4 {[%emt 0:00:04]} d5 {[%emt 0:00:02]} 3. f3 {[%emt 0:00:25]} e6 {[%emt 0:01:43]} 4. Nc3 {[%emt 0:00:42]} Bb4 {[%emt 0:07:56]} 5. Bd2 {[%emt 0:00:19]} Nf6 {[%emt 0:06:20]} 6. Bd3 {[%emt 0:10:15] [#] B12: Caro-Kann: Advance Variation.} (6. e5 $5 {[%cal Re5f6]} Nfd7 7. f4 $11) 6... b6 $146 {[%emt 0:17:52]} ({Predecessor:} 6... O-O 7. Nge2 c5 8. dxc5 Bxc5 9. exd5 Nxd5 10. a3 Nc6 11. Be4 Nxc3 12. Nxc3 Ne5 {1-0 Gomes,L-Gravina,C (1800) Hebraica op 29th 2022 (4)}) 7. e5 {[%emt 0:11:10]} Nfd7 {[%emt 0:00:50]} 8. f4 {[%emt 0:03:26] White is slightly better.} Ba6 {[%emt 0:03:21]} 9. Qe2 {[%emt 0:09:43]} Bxd3 {[%emt 0:01:05]} 10. Qxd3 {[%emt 0:00:22]} Bxc3 {[%emt 0:00:28]} 11. bxc3 {[%emt 0:03:34]} c5 {[%emt 0:11:04]} 12. Ne2 {[%emt 0:01:43]} Nc6 {[%emt 0:00:55]} 13. O-O {[%emt 0:01:19]} g6 {[%emt 0:01:31]} 14. Be1 {[%emt 0:23:49]} Qe7 {[%emt 0:05:10]} 15. Qh3 {[%emt 0:02:44]} f5 {[%emt 0:05:39]} 16. exf6 {[%emt 0:07:45]} Nxf6 {[%emt 0:00:48]} 17. Bh4 {[%emt 0:01:18]} O-O {[%emt 0:01:16]} 18. Rae1 {[%emt 0:01:30]} Rae8 {[%emt 0:02:22]} 19. g4 {[%emt 0:06:52]} Qg7 {[%emt 0:03:30]} 20. Bg5 {[%emt 0:04:17] Bh6 is the strong threat.} Qd7 {[%emt 0:02:28]} 21. Bxf6 {[%emt 0:02:17]} Rxf6 {[%emt 0:00:11]} 22. Qe3 {[%emt 0:00:38]} c4 {[%emt 0:02:36]} 23. Ng3 {[%emt 0:00:59][%cal Of4f5]} Rf7 {[%emt 0:10:55]} (23... Re7 $11) 24. h4 {[%emt 0:03:16]} (24. f5 $1 $14) 24... Qe7 {[%emt 0:02:10]} (24... Qd8 $5 {[%cal Rd8h4]}) 25. g5 {[%emt 0:00:55]} Kg7 {[%emt 0:01:41]} (25... h5 $11) 26. h5 $14 {[%emt 0:00:52]} Qc7 {[%emt 0:01:52]} 27. Rf2 {[%emt 0:00:46]} (27. f5 $16 gxf5 28. h6+ (28. Nxf5+ exf5 29. h6+ Kg6 $11) 28... Kh8 29. Rxf5 {[%mdl 64] Back Rank}) 27... Ref8 $1 $11 {[%emt 0:02:17]} 28. Ne2 {[%emt 0:01:41]} (28. Qxe6 $2 Re7 29. hxg6 (29. h6+ $2 Kh8 $19) 29... Rxe6 30. Nh5+ Kxg6 31. Rxe6+ Kxh5 $19) (28. Kg2 $14) 28... Qe7 {[%emt 0:01:04]} (28... gxh5 29. Qxe6 Kh8 30. Qxd5 $16) (28... Qd6 $11 {remains equal.}) 29. Qh3 {[%emt 0:01:03]} (29. Rh2 $1 $16 {Strongly threatening hxg6.} Qe8 30. hxg6 hxg6 31. Kg2 (31. Qh3 Rh8 $11)) 29... Kg8 $14 {[%emt 0:03:39]} 30. Rh2 {[%emt 0:01:10] Ng3 would be deadly.} gxh5 $2 {[%emt 0:00:34]} (30... Rg7 $1 $14) 31. Qxh5 $2 {[%emt 0:00:20]} (31. Ng3 $1 $18 {[%cal Rg3h5]}) 31... Rg7 {[%emt 0:00:29]} 32. Rf1 {[%emt 0:00:42]} (32. Qg4 $5 {[%cal Re2g3]}) 32... Qd6 {[%emt 0:02:40]} (32... Rff7 $11) 33. Qg4 {[%emt 0:00:28]} ({White should play} 33. f5 $1 $14 exf5 34. Nf4) 33... Ne7 $11 {[%emt 0:00:36]} 34. Ng3 {[%emt 0:00:30]} Nf5 {[%emt 0:00:42]} 35. Re2 {[%emt 0:00:29] Wards off Ne3} Nxg3 {[%emt 0:00:43]} 36. Qxg3 {[%emt 0:00:02]} h6 {[%emt 0:00:47][%cal Og7g5]} 37. Re5 {[%emt 0:00:35]} (37. g6 Rf6 38. Rg2 Qd8 $17) 37... Rff7 {[%emt 0:00:26]} 38. Rfe1 {[%emt 0:00:34]} ({Reject} 38. g6 Rf6 39. f5 Rd7 $15) 38... hxg5 {[%emt 0:00:30]} 39. fxg5 {[%emt 0:00:21]} Rf5 {[%emt 0:00:33]} 40. g6 {[%emt 0:00:00]} (40. Kg2 $11) 40... Rf6 $17 {[%emt 0:00:00]} 41. Qh4 $2 {[%emt 0:08:48][%mdl 8192]} (41. Rg5 $17 Qxg3+ 42. Rxg3) 41... Rgxg6+ {[%emt 0:07:13]} (41... Rfxg6+ $142 42. Kf2 Rg2+ 43. Ke3 R7g3+ 44. Qxg3+ Rxg3+ 45. Kd2 Qa3) 42. Rg5 $19 {[%emt 0:00:25]} Qf8 {[%emt 0:10:46]} 43. Ree5 {[%emt 0:05:20]} Kg7 {[%emt 0:02:28]} 44. Kh2 {[%emt 0:04:43]} Rf2+ {[%emt 0:04:39]} 45. Kg1 {[%emt 0:00:46] Threatening mate with Rxg6+.} Rf1+ {[%emt 0:00:29]} (45... Rxc2 46. Rxg6+ Kxg6 47. Rxe6+ Kf5 48. Re5+ Kg6 49. Rg5+ (49. Rxd5 Rc1+ 50. Kh2 Rc2+ 51. Kg1 Rc1+ 52. Kh2 Rh1+ {[%mdl 64] Decoy} 53. Kxh1 Qf3+ 54. Kh2 Qxd5 $11) 49... Kf7 50. Rf5+ (50. Rxd5 Rc1+ 51. Kg2 Rc2+ 52. Kh1 Rc1+ 53. Kh2 Rc2+ 54. Kh1 Rc1+ 55. Kh2 Rc2+ 56. Kh1 $11) 50... Kg8 51. Rxf8+) 46. Kh2 {[%emt 0:00:31] Black must now prevent Rxg6+.} Qf2+ {[%emt 0:00:25]} 47. Qxf2 {[%emt 0:00:23]} Rxf2+ {[%emt 0:00:03][%mdl 4096] Endgame KRR-KRR} 48. Kg3 {[%emt 0:00:49]} Rff6 {[%emt 0:00:28]} (48... Rxc2 $2 {too greedy.} 49. Rxg6+ Kxg6 50. Rxe6+ Kf5 51. Re5+ Kf6 52. Rxd5 $19) (48... Rxg5+ $142 49. Rxg5+ Kf6 50. Rxd5 Rxc2) 49. Rxg6+ {[%emt 0:02:11]} Kxg6 {[%emt 0:00:01] KR-KR} 50. Kg4 $2 {[%emt 0:00:08]} (50. Re1) 50... Kf7 {[%emt 0:00:08] Threatens to win with ...Rf2.} 51. Rh5 {[%emt 0:00:22]} Ke7 {[%emt 0:03:03]} (51... Rf2 $142 52. Rh7+ Kf6) 52. Rh8 $2 {[%emt 0:01:26]} (52. Rh1) 52... Rf2 {[%emt 0:01:30]} 53. Rh7+ {[%emt 0:00:39]} Rf7 $2 {[%emt 0:00:08]} (53... Kd6 54. Rxa7 Rxc2) 54. Rh8 $2 {[%emt 0:00:09]} (54. Rh1) 54... Kd6 {[%emt 0:01:42] aiming for ...Rf2.} 55. Rd8+ {[%emt 0:01:11]} Rd7 {[%emt 0:01:03]} (55... Kc7 $142 56. Ra8 Kb7) 56. Re8 {[%emt 0:00:30]} (56. Rh8 {nothing else works.}) 56... Re7 $2 {[%emt 0:00:41]} (56... Rh7 57. Rd8+ Ke7) 57. Rd8+ {[%emt 0:00:11]} (57. Rh8 $142) 57... Kc7 {[%emt 0:01:45]} 58. Ra8 {[%emt 0:00:07]} Kd6 {[%emt 0:01:08]} 59. Rd8+ {[%emt 0:00:11] [#]} Rd7 $2 {[%emt 0:00:09]} (59... Kc6 $1 60. Rc8+ Kb7) 60. Re8 {[%emt 0:00:17]} Rf7 {[%emt 0:01:24]} ({Better is} 60... Rh7 $19 61. Rd8+ Ke7) 61. Kg3 $2 {[%emt 0:02:08][%mdl 8192]} (61. Rd8+ $11 {and White has nothing to worry.} Ke7 62. Ra8) 61... b5 {[%emt 0:01:19]} (61... Rf1 $142 62. Rd8+ Ke7) 62. Rd8+ $2 {[%emt 0:01:25]} (62. Kg2 {is a better chance.}) 62... Kc6 {[%emt 0:01:01]} (62... Kc7 $142 63. Re8 Rf6 64. Re7+ Kb6) 63. Re8 {[%emt 0:00:12] [#]} (63. Kg2) 63... Rf6 $1 {[%emt 0:00:48]} 64. Kg4 {[%emt 0:00:15]} Kd6 {[%emt 0:00:33]} 65. Rd8+ {[%emt 0:00:10][%mdl 32768] Weighted Error Value: White=0.70/Black=0.61. An unexpected result.} 1/2-1/2

[Event "Polish Youth B18 Championship 2023"]
[Site "Jastrzebia Gora"]
[Date "2023.03.16"]
[Round "6.19"]
[White "Jedraszek, Pawel"]
[Black "Malik, Maciej"]
[Result "1-0"]
[ECO "B48"]
[WhiteElo "1944"]
[BlackElo "2163"]
[Annotator "TA"]
[PlyCount "120"]
[EventDate "2023.03.11"]
[EventType "swiss"]
[EventCountry "POL"]
[SourceTitle "playchess.com"]
[Source "ChessBase"]
[SourceQuality "1"]
[TimeControl "40/5400+30:1800+30"]

{[%evp 11,120,30,35,8,33,23,76,64,156,154,219,130,186,148,144,141,147,112,179,117,115,98,132,120,130,130,156,151,175,137,212,175,166,129,136,0,162,162,147,123,119,123,124,-1121,210,206,29990,344,29996,865,1563,822,1525,811,1763,1559,29984,1711,29989,2020,3575,2402,2162,1835,3350,3468,3508,3393,29990,29986,29992,29991,29993,29993,29994,29995,29995,29994,29996,29993,29994,29993,29995,29994,29995,29992,29995,29993,29993,29992,29992,29980,29995,29992,29992,29993,29995,29995,29997,29995,29997,29996,29996,29993,29997,29987,29996,0,29997,29993,29993]} 1. e4 {[%emt 0:00:01]} c5 {[%emt 0:02:12]} 2. Nf3 {[%emt 0:00:07]} Nc6 {[%emt 0:00:08]} 3. d4 {[%emt 0:00:13]} cxd4 {[%emt 0:00:08]} 4. Nxd4 {[%emt 0:00:07]} e6 {[%emt 0:00:07]} 5. Nc3 {[%emt 0:00:47]} Qc7 {[%emt 0:01:20]} 6. Be3 {[%emt 0:00:43]} a6 {[%emt 0:00:07]} 7. g4 $1 {[%emt 0:01:04][%mdl 4] 7.g4 is a critical line. B48: Sicilian: Taimanov: 5 Nc3 Qc7 6 Be3 a6 without Be2.} Bb4 {[%emt 0:05:06]} 8. Nxc6 {[%emt 0:01:30]} bxc6 {[%emt 0:05:59]} (8... Bxc3+ $11 9. bxc3 bxc6) 9. Qd4 $16 {[%emt 0:02:48][%csl LRb4,LRg7] [#] White is better.} Bxc3+ $146 {[%emt 0:00:59]} (9... Be7 $14) ({Predecessor:} 9... Bf8 10. O-O-O Nf6 11. f3 e5 12. Qb6 Qxb6 13. Bxb6 d6 14. Bc7 Kd7 15. Ba5 Ke8 16. Bc7 Kd7 17. Ba5 Ke8 18. Bc7 {½-½ Lu,M (2399)-Damljanovic,B (2420) Belgrade Radnicki GM 01 2023 (7)}) 10. Qxc3 {[%emt 0:03:05]} Ne7 {[%emt 0:04:57] Black is weak on the dark squares} (10... f6 $16 {is a better defense.} 11. g5 Qe5) 11. O-O-O {[%emt 0:05:38]} (11. Qxg7 $18 Rg8 12. Qxh7) 11... f6 {[%emt 0:24:07]} (11... O-O $16) 12. f4 {[%emt 0:07:24]} O-O {[%emt 0:02:52]} 13. Bg2 {[%emt 0:07:41] White is much more active.} d5 {[%emt 0:09:30]} 14. Rhg1 {[%emt 0:06:49]} Rd8 {[%emt 0:06:41]} (14... Rf7 $16) 15. Qc5 {[%emt 0:08:52]} (15. g5 $18 f5 16. g6) 15... Rb8 {[%emt 0:03:11]} 16. a4 {[%emt 0:00:51] Prevents Rb5} Rb7 {[%emt 0:07:36]} (16... e5 $2 17. exd5 Qb7 18. b3 (18. dxc6 $2 Qxb2#) 18... Nxd5 19. fxe5 $18) 17. Rd2 {[%emt 0:11:24]} Ng6 {[%emt 0:07:38]} 18. Rf1 {[%emt 0:05:40]} Nf8 {[%emt 0:03:53]} 19. h4 {[%emt 0:07:23]} Qe7 {[%emt 0:03:30]} 20. Qa5 {[%emt 0:01:19]} Rbd7 {[%emt 0:01:35]} (20... Re8 $16 {was worth a try.} 21. Bc5 (21. Qxa6 $2 Rxb2 22. Qd3 Ra2 $19) 21... Qc7 22. Qxc7 (22. Qxa6 Nd7 $17) 22... Rxc7) 21. Bb6 {[%emt 0:04:03]} Re8 {[%emt 0:00:00]} 22. Bc5 {[%emt 0:01:19]} Qd8 {[%emt 0:00:56]} 23. Bb6 {[%emt 0:02:18] A strong pair of Bishops.} Qe7 {[%emt 0:00:01]} 24. g5 {[%emt 0:01:45]} f5 {[%emt 0:01:56]} 25. e5 {[%emt 0:01:01]} Rb7 {[%emt 0:00:39]} 26. Bc5 $36 {[%emt 0:00:44][%mdl 2048] Black is under strong pressure.} (26. Qxa6 $6 Nd7 27. Be3 Rxb2 28. Qxc6 Ra2 $11) 26... Qd8 {[%emt 0:01:36] [#]} 27. Qb6 {[%mdl 8192]} Qc7 $4 {[%mdl 8192]} (27... Rxb6 $19 {and all is fine.} 28. Bxb6 Qxb6) 28. Qxc7 $18 {[%emt 0:04:44]} ({Inferior is} 28. Qxa6 Rxb2 29. Qd3 Qb8 $15) 28... Rd8 $2 {[%emt 0:00:32] [#]} (28... Rxc7 $18 29. Bd6 Ra7) 29. Rf3 $2 {[%emt 0:01:39]} Nd7 $2 {[%emt 0:00:43]} (29... Rxc7 $18 30. Bb6 Rdd7 31. Bxc7 Rxc7) 30. Be7 {[%emt 0:00:14]} (30. Qxd8+ $142 Kf7 31. Qe7+ Kg8 32. Qe8+ Nf8 33. Qxf8#) 30... Re8 {[%emt 0:00:08]} 31. Bd6 {[%emt 0:00:05]} c5 {[%emt 0:02:10]} 32. b3 {[%emt 0:03:52]} Rb4 {[%emt 0:01:08]} 33. Kb2 {[%emt 0:01:43][%cal Bc1b2,Bb2a3,Ba3b4,Bb4a5,Ba5a6][%mdl 32]} Bb7 {[%emt 0:02:48]} 34. Rff2 {[%emt 0:00:29]} (34. Qxd7 $142 Rc8 35. Bxc5 a5 36. Bxb4 axb4 37. Qxb7 Rf8 38. Qe7 h6 39. gxh6) 34... d4 {[%emt 0:01:27]} 35. Bf1 {[%emt 0:01:17]} (35. Qxd7 $142 Ra8 36. Bxb7 Rxb7 37. Qxb7 Re8 38. Qd7 Ra8 39. Bxc5 d3 40. Rxd3) 35... Ra8 {[%emt 0:01:02]} 36. Ka3 {[%emt 0:02:05]} Bd5 {[%emt 0:01:03]} 37. Bxc5 {[%emt 0:02:07]} Nxc5 {[%emt 0:00:26]} 38. Kxb4 {[%emt 0:00:00]} Ne4 {[%emt 0:00:01] [#]} 39. Bg2 $1 {[%emt 0:00:40] Bxe4 would kill now.} Rb8+ {[%emt 0:00:06]} (39... Kh8 40. Bxe4) 40. Ka5 {[%emt 0:00:53]} d3 {[%emt 0:00:38]} 41. cxd3 {[%emt 0:02:52]} Nxd2 {[%emt 0:01:24]} 42. Bxd5 {[%emt 0:00:49]} Nxb3+ {[%emt 0:00:30]} 43. Bxb3 {[%emt 0:00:01]} Rxb3 {[%emt 0:00:02]} 44. Kxa6 {[%emt 0:02:44]} Rxd3 {[%emt 0:00:07]} 45. Kb5 {[%emt 0:02:45]} Rb3+ {[%emt 0:05:32]} 46. Kc4 {[%emt 0:00:24]} Ra3 {[%emt 0:00:15]} 47. Kb4 {[%emt 0:00:05]} Ra1 {[%emt 0:00:04]} 48. a5 {[%emt 0:03:20]} h5 {[%emt 0:00:11]} 49. Rd2 {[%emt 0:00:13]} Rb1+ {[%emt 0:00:23]} 50. Kc5 {[%emt 0:00:08]} Rc1+ {[%emt 0:00:13]} 51. Kb5 {[%emt 0:00:36]} Rb1+ {[%emt 0:00:11]} 52. Kc6 {[%emt 0:00:31]} Rc1+ {[%emt 0:00:12]} 53. Kb6 {[%emt 0:01:10]} Rb1+ {[%emt 0:00:06]} 54. Ka7 {[%emt 0:00:09]} Rb4 {[%emt 0:00:09]} 55. a6 {[%emt 0:01:17]} Rxf4 {[%emt 0:00:40]} 56. Rb2 {[%emt 0:02:56]} Rc4 {[%emt 0:05:38]} 57. Kb6 {[%emt 0:01:09]} Rc6+ {[%emt 0:02:57]} 58. Ka5 {[%emt 0:00:22]} Rc1 {[%emt 0:00:27]} 59. Kb6 {[%emt 0:03:01]} Rc6+ $1 {[%emt 0:00:05]} 60. Kb7 {[%emt 0:00:31]} Rxc7+ {[%emt 0:00:00] An exciting game.   Weighted Error Value: White=0.73/Black=0.97} 1-0